bitfinex/quotes_BTCUSD_20251201
["timestamp","ask_amount","ask_price","bid_price","bid_amount"]
[1764553404227,0.0114193,87571.0,87564.0,0.09182843]
[1764553404228,0.01141969,87568.0,87564.0,0.09182843]
[1764553404447,0.002,87566.0,87564.0,0.32023261]
[1764553404644,0.22840118,87566.0,87564.0,0.08040822]
[1764553404826,0.03381982,87567.0,87564.0,0.08040822]
[1764553405246,0.01141969,87568.0,87564.0,0.09182843]
[1764553405727,0.22839393,87568.0,87564.0,0.09182843]
[1764553405927,0.01141982,87567.0,87564.0,0.08040822]
[1764553406124,0.01141982,87567.0,87564.0,0.09182843]
[1764553406564,0.001,87566.0,87564.0,0.09182843]
[1764553406764,0.001,87566.0,87564.0,0.32023034]
[1764553406971,0.23980866,87570.0,87566.0,0.23981759]
[1764553407150,0.001,87567.0,87566.0,0.23981759]
[1764553407573,0.01141852,87577.0,87570.0,0.01141943]
[1764553407774,0.01141865,87576.0,87573.0,0.01141904]
[1764553407950,0.01141865,87576.0,87573.0,0.09182726]
[1764553408159,0.01141865,87576.0,87573.0,0.08040822]
[1764553408355,0.03231,87574.0,87573.0,0.08040822]
[1764553408574,0.04371,87574.0,87573.0,0.08040822]
[1764553408774,0.27962567,87575.0,87573.0,0.08040822]
[1764553408775,0.22837567,87575.0,87573.0,0.08040822]
[1764553409226,0.02396,87580.0,87573.0,0.08040822]
[1764553409414,0.011418,87581.0,87576.0,0.01141865]
[1764553409572,0.01141839,87578.0,87573.0,0.09182726]
[1764553409777,0.01141839,87578.0,87574.0,0.01141891]
[1764553409978,0.003,87576.0,87574.0,0.01141891]
[1764553410193,0.01141839,87578.0,87574.0,0.01141891]
[1764553410394,0.03231,87575.0,87573.0,0.08040822]
[1764553410760,0.03231,87574.0,87573.0,0.08040822]
[1764553410898,0.22837828,87574.0,87573.0,0.08040822]
[1764553411927,0.22836524,87579.0,87573.0,0.08040822]
[1764553412122,0.22837828,87574.0,87573.0,0.08040822]
[1764553412994,0.23137828,87574.0,87573.0,0.08040822]
[1764553413203,0.01141865,87576.0,87573.0,0.08040822]
[1764553413770,0.001,87574.0,87573.0,0.08040822]
[1764553413982,0.22837656,87575.0,87573.0,0.08040822]
[1764553414476,0.003,87574.0,87573.0,0.08040822]
[1764553414671,0.22837656,87575.0,87573.0,0.08040822]
[1764553414876,0.002,87574.0,87573.0,0.08040822]
[1764553415100,0.08556,87574.0,87573.0,0.08040822]
[1764553415305,0.04571,87574.0,87573.0,0.08040822]
[1764553415477,0.09696,87574.0,87573.0,0.08040822]
[1764553416048,0.09496,87574.0,87573.0,0.08040822]
[1764553417016,0.09696,87574.0,87573.0,0.08040822]
[1764553417224,0.09496,87574.0,87573.0,0.08040822]
[1764553417574,0.10096,87574.0,87573.0,0.08040822]
[1764553419439,0.03831,87574.0,87573.0,0.08040822]
[1764553419587,0.08956,87574.0,87573.0,0.08040822]
[1764553420013,0.01142139,87555.0,87554.0,0.08040822]
[1764553420331,0.01142139,87555.0,87554.0,0.08080308]
[1764553420332,0.23984923,87555.0,87554.0,0.08080308]
[1764553420546,0.33480923,87555.0,87554.0,0.08080308]
[1764553420793,0.32340923,87555.0,87554.0,0.08080308]
[1764553421561,0.23984923,87555.0,87554.0,0.08080308]
[1764553421960,0.32340923,87555.0,87554.0,0.00039486]
[1764553422163,0.33480923,87555.0,87554.0,0.00039486]
[1764553422334,0.33480923,87555.0,87554.0,0.00239486]
[1764553422531,0.33480923,87555.0,87554.0,0.00039486]
[1764553422929,0.33480923,87555.0,87554.0,0.00139486]
[1764553423137,0.32340923,87555.0,87554.0,0.00039486]
[1764553423471,0.64640923,87555.0,87554.0,0.00039486]
[1764553423637,0.66180923,87555.0,87554.0,0.00039486]
[1764553423839,0.66280923,87555.0,87554.0,0.00039486]
[1764553424503,0.68736063,87555.0,87554.0,4.86e-06]
[1764553424717,0.69425481,87555.0,87554.0,4.86e-06]
[1764553425407,0.69025481,87555.0,87554.0,4.86e-06]
[1764553425609,0.69749481,87555.0,87554.0,4.86e-06]
[1764553425812,0.70049481,87555.0,87554.0,0.00100486]
[1764553426035,0.37160063,87555.0,87554.0,0.00100486]
[1764553426240,0.33980923,87555.0,87554.0,0.00100486]
[1764553426443,0.33564923,87555.0,87554.0,0.00100486]
[1764553429686,0.32840923,87555.0,87554.0,0.00100486]
[1764553429845,0.33564923,87555.0,87554.0,0.00100486]
[1764553435473,0.28439923,87555.0,87554.0,0.00100486]
[1764553435779,0.005,87555.0,87554.0,0.12623306]
[1764553436241,0.005,87555.0,87554.0,0.09276306]
[1764553436467,0.31167784,87555.0,87554.0,0.00100486]
[1764553436659,0.31907784,87555.0,87554.0,4.86e-06]
[1764553436790,0.32207784,87555.0,87554.0,0.00100486]
[1764553437797,0.32931784,87555.0,87554.0,0.00100486]
[1764553437996,0.32731784,87555.0,87554.0,4.86e-06]
[1764553438203,0.27794784,87555.0,87554.0,4.86e-06]
[1764553438416,0.32731784,87555.0,87554.0,0.00200486]
[1764553438616,0.27794784,87555.0,87554.0,4.86e-06]
[1764553438815,0.32631784,87555.0,87554.0,4.86e-06]
[1764553439053,0.26854784,87555.0,87554.0,0.00100486]
[1764553439313,0.25930784,87555.0,87554.0,4.86e-06]
[1764553439521,0.22942784,87555.0,87554.0,4.86e-06]
[1764553439724,0.22942784,87555.0,87554.0,0.00100486]
[1764553439903,0.001,87555.0,87554.0,0.00100486]
[1764553440110,0.01142113,87557.0,87554.0,0.04589638]
[1764553440494,0.2398402,87559.0,87554.0,0.00100486]
[1764553440670,0.011421,87558.0,87554.0,0.00100486]
[1764553440891,0.0114206,87561.0,87554.0,0.00100486]
[1764553441092,0.23984384,87557.0,87554.0,0.00100486]
[1764553441343,0.02074,87564.0,87556.0,0.01142126]
[1764553441545,0.01141969,87568.0,87563.0,0.01142034]
[1764553441856,0.01141969,87568.0,87563.0,0.12814854]
[1764553442168,0.01141839,87578.0,87570.0,0.23980775]
[1764553442292,0.01141904,87573.0,87568.0,0.04488969]
[1764553442489,0.239802,87573.0,87568.0,0.04488969]
[1764553442823,0.01141904,87573.0,87568.0,0.09363969]
[1764553442991,0.0114193,87571.0,87568.0,0.08222]
[1764553443194,0.0114193,87571.0,87568.0,0.09363969]
[1764553443455,0.0114193,87571.0,87568.0,0.08222]
[1764553443850,0.0002,87660.0,87569.0,0.01141956]
[1764553444050,0.22837803,87575.0,87569.0,0.01141956]
[1764553444284,0.02396,87580.0,87571.0,0.0114193]
[1764553444490,0.01141917,87572.0,87569.0,0.01141956]
[1764553444782,0.01141956,87569.0,87563.0,0.10317854]
[1764553444956,0.22839851,87567.0,87563.0,0.10317854]
[1764553445138,0.01141956,87569.0,87566.0,0.01141995]
[1764553445351,0.01141943,87570.0,87567.0,0.01141982]
[1764553445543,0.0114193,87571.0,87567.0,0.01141982]
[1764553445862,0.01141917,87572.0,87570.0,0.03347]
[1764553446265,0.001,87572.0,87570.0,0.2618581]
[1764553446586,0.001,87572.0,87571.0,0.08222]
[1764553446823,0.001,87572.0,87571.0,0.09362]
[1764553447215,0.001,87572.0,87571.0,0.08222]
[1764553447581,0.001,87572.0,87567.0,0.24705406]
[1764553447582,0.23978063,87581.0,87563.0,0.0917582]
[1764553447808,0.001,87571.0,87567.0,0.003]
[1764553448006,0.001,87571.0,87569.0,0.22838922]
[1764553448161,0.01141891,87574.0,87569.0,0.23980878]
[1764553448366,0.01141891,87574.0,87571.0,0.004]
[1764553448585,0.001,87572.0,87571.0,0.004]
[1764553448790,0.01141839,87578.0,87573.0,0.03347]
[1764553449012,0.01141839,87578.0,87574.0,0.03347]
[1764553449210,0.01141839,87578.0,87574.0,0.04488891]
[1764553450241,0.01141852,87577.0,87574.0,0.03347]
[1764553450442,0.23978076,87580.0,87577.0,0.01393]
[1764553450645,0.01141826,87579.0,87574.0,0.03347]
[1764553450887,0.28321809,87575.0,87573.0,0.0917582]
[1764553451046,0.03088,87574.0,87573.0,0.0917582]
[1764553451245,0.01141734,87586.0,87577.0,0.01141852]
[1764553451422,0.22836318,87580.0,87578.0,0.02497]
[1764553451628,0.011418,87581.0,87578.0,0.26475573]
[1764553451831,0.01141774,87583.0,87579.0,0.01141826]
[1764553452040,0.011418,87581.0,87578.0,0.02497]
[1764553452444,0.2397802,87581.0,87578.0,0.02497]
[1764553452709,0.2407802,87581.0,87578.0,0.02697]
[1764553452984,0.22836524,87579.0,87578.0,0.002]
[1764553453958,0.22837828,87574.0,87573.0,0.0917582]
[1764553454156,0.23982259,87565.0,87563.0,0.0917582]
[1764553454657,0.03088,87564.0,87563.0,0.0917582]
[1764553455281,0.07925,87564.0,87563.0,0.0917582]
[1764553455484,0.22842784,87555.0,87554.0,0.09176306]
[1764553455598,0.27070784,87555.0,87554.0,0.09176306]
[1764553456995,0.30737784,87555.0,87554.0,0.09176306]
[1764553457646,0.30837784,87555.0,87554.0,0.00600486]
[1764553457856,0.31877784,87555.0,87554.0,4.86e-06]
[1764553458917,0.31977784,87555.0,87554.0,0.00300486]
[1764553461100,0.09135,87555.0,87554.0,0.00300486]
[1764553462254,0.33655,87555.0,87554.0,0.00300486]
[1764553462459,0.32515,87555.0,87554.0,0.00300486]
[1764553462780,0.33655,87555.0,87554.0,0.00300486]
[1764553463754,0.33555,87555.0,87554.0,4.86e-06]
[1764553464157,0.25244,87555.0,87554.0,4.86e-06]
[1764553464433,0.25244,87555.0,87554.0,0.00200486]
[1764553464434,0.25344,87555.0,87554.0,0.00200486]
[1764553464835,0.2462,87555.0,87554.0,0.00200486]
[1764553465048,0.23983795,87560.0,87554.0,0.00200486]
[1764553465049,0.2452,87574.0,87554.0,0.07940486]
[1764553465203,0.01142034,87563.0,87556.0,0.01142126]
[1764553465405,0.01141995,87566.0,87556.0,0.01142126]
[1764553465622,0.22842784,87555.0,87554.0,0.00200486]
[1764553466617,0.01142113,87557.0,87554.0,4.86e-06]
[1764553466932,0.001,87555.0,87554.0,0.00400486]
[1764553470353,0.001,87555.0,87554.0,0.03588486]
[1764553470552,0.001,87555.0,87554.0,0.00400486]
[1764553470765,0.001,87555.0,87554.0,0.03588486]
[1764553471809,0.08164,87555.0,87554.0,0.00400486]
[1764553472082,0.08888,87555.0,87554.0,0.00400486]
[1764553472443,0.42328,87555.0,87554.0,0.00400486]
[1764553473074,0.59454966,87555.0,87554.0,4.86e-06]
[1764553473210,0.0114,87532.0,87531.0,0.0917582]
[1764553473411,0.06484,87532.0,87531.0,0.00011831]
[1764553473735,0.43739,87532.0,87531.0,0.00011831]
[1764553474526,0.43839,87532.0,87531.0,0.00411831]
[1764553474857,0.43739,87532.0,87531.0,0.00011831]
[1764553475122,0.43839,87532.0,87531.0,0.00011831]
[1764553476249,0.43939,87532.0,87531.0,0.00111831]
[1764553491761,0.42799,87532.0,87531.0,0.00111831]
[1764553491945,0.5088012,87532.0,87531.0,0.00111831]
[1764553492112,0.53333239,87532.0,87531.0,0.00111831]
[1764553492521,0.53233239,87532.0,87531.0,1e-08]
[1764553492719,0.22856881,87501.0,87500.0,0.0004]
[1764553492920,0.27113629,87501.0,87500.0,0.0004]
[1764553493123,0.31986629,87501.0,87500.0,0.00133722]
[1764553494709,6.748e-05,87501.0,87500.0,0.03344722]
[1764553494913,0.00106748,87501.0,87500.0,0.08101722]
[1764553496083,0.00106748,87501.0,87500.0,0.03444722]
[1764553496840,0.22963629,87501.0,87500.0,0.00233722]
[1764553497275,0.00106748,87501.0,87500.0,0.00233722]
[1764553497986,0.00106748,87501.0,87500.0,0.30958864]
[1764553498214,0.00106748,87501.0,87500.0,0.08101722]
[1764553498492,0.00106748,87501.0,87500.0,0.03444722]
[1764553498787,0.00106748,87501.0,87500.0,0.00233722]
[1764553500265,0.30946629,87501.0,87500.0,0.00233722]
[1764553501157,0.03216748,87501.0,87500.0,0.00233722]
[1764553501577,0.00106748,87501.0,87500.0,0.00233722]
[1764553502398,0.00106748,87501.0,87500.0,0.10387436]
[1764553502626,0.00106748,87501.0,87500.0,0.08101722]
[1764553503637,0.00106748,87501.0,87500.0,0.10387436]
[1764553503803,0.00106748,87501.0,87500.0,0.11527436]
[1764553504176,6.748e-05,87501.0,87500.0,0.11427436]
[1764553504384,0.01406748,87501.0,87500.0,0.11427436]
[1764553504584,0.01506748,87501.0,87500.0,0.00633722]
[1764553504762,0.01406748,87501.0,87500.0,0.08001722]
[1764553504963,0.01406748,87501.0,87500.0,0.00133722]
[1764553505195,0.01506748,87501.0,87500.0,0.00733722]
[1764553505394,0.01406748,87501.0,87500.0,0.00133722]
[1764553505744,0.1132166,87501.0,87500.0,0.00533722]
[1764553506137,0.13686869,87501.0,87500.0,0.00133722]
[1764553507520,0.13786869,87501.0,87500.0,0.00533722]
[1764553507882,0.13686869,87501.0,87500.0,0.00133722]
[1764553510302,0.1162166,87501.0,87500.0,0.00233722]
[1764553510703,0.10929748,87501.0,87500.0,0.00233722]
[1764553514508,0.10799991,87501.0,87500.0,0.00233722]
[1764553514773,0.05926991,87501.0,87500.0,0.00233722]
[1764553514973,0.10799991,87501.0,87500.0,0.00233722]
[1764553515307,0.11523991,87501.0,87500.0,0.00233722]
[1764553516113,0.01676991,87501.0,87500.0,0.30958864]
[1764553516638,0.01676991,87501.0,87500.0,0.70651163]
[1764553516800,0.01142361,87538.0,87529.0,0.01142478]
[1764553517000,0.01142439,87532.0,87529.0,0.00011852]
[1764553517226,0.01142361,87538.0,87533.0,0.01142426]
[1764553517430,0.01142282,87544.0,87538.0,0.01142361]
[1764553517696,0.01142282,87544.0,87538.0,0.1227682]
[1764553517897,0.01142321,87541.0,87538.0,0.1227682]
[1764553518097,0.22846698,87540.0,87538.0,0.1227682]
[1764553518213,0.01142321,87541.0,87538.0,0.1227682]
[1764553518636,0.22846698,87540.0,87538.0,0.0917582]
[1764553518835,0.02965,87539.0,87538.0,0.0927582]
[1764553519186,0.02965,87539.0,87538.0,0.0917582]
[1764553519187,0.04105,87539.0,87538.0,0.0917582]
[1764553519354,0.04105,87539.0,87529.0,0.09187672]
[1764553519355,0.23991287,87532.0,87529.0,0.09187672]
[1764553519554,0.26954308,87530.0,87529.0,0.00011852]
[1764553520075,0.31563308,87530.0,87529.0,0.00011852]
[1764553521127,0.31663308,87530.0,87529.0,0.00411852]
[1764553521304,0.31563308,87530.0,87529.0,0.00011852]
[1764553521827,0.31663308,87530.0,87529.0,0.00111852]
[1764553522035,0.64687308,87530.0,87529.0,0.00111852]
[1764553522279,0.67835833,87530.0,87529.0,0.00111852]
[1764553522479,0.67111833,87530.0,87529.0,0.00111852]
[1764553522664,0.67835833,87530.0,87529.0,0.00111852]
[1764553522867,0.67111833,87530.0,87529.0,0.00111852]
[1764553523072,0.67145658,87530.0,87529.0,0.00111852]
[1764553523423,0.66005658,87530.0,87529.0,0.00111852]
[1764553523642,0.67045658,87530.0,87529.0,0.00011852]
[1764553523910,0.67735804,87530.0,87529.0,0.00011852]
[1764553524134,0.67835804,87530.0,87529.0,0.00111852]
[1764553524506,0.22851136,87523.0,87522.0,0.00024986]
[1764553524763,0.35400581,87523.0,87522.0,0.00024986]
[1764553524971,0.42521931,87523.0,87522.0,0.00024986]
[1764553525730,0.42921931,87523.0,87522.0,0.00124986]
[1764553526203,0.42921931,87523.0,87500.0,0.0004]
[1764553526204,0.22856881,87501.0,87500.0,0.0004]
[1764553526338,0.29987881,87501.0,87500.0,0.0004]
[1764553526539,0.34650881,87501.0,87500.0,0.0004]
[1764553526740,0.34650881,87501.0,87500.0,0.00108733]
[1764553527663,0.34750881,87501.0,87500.0,0.00108733]
[1764553527875,0.34850881,87501.0,87500.0,0.00208733]
[1764553530490,0.28323881,87501.0,87500.0,0.00208733]
[1764553530690,0.29047881,87501.0,87500.0,0.00208733]
[1764553530911,0.28323881,87501.0,87500.0,0.00208733]
[1764553531263,0.29047881,87501.0,87500.0,0.00208733]
[1764553532215,0.34850881,87501.0,87500.0,0.00208733]
[1764553533961,0.30187881,87501.0,87500.0,0.00208733]
[1764553534746,0.002,87501.0,87500.0,0.12248553]
[1764553535655,0.002,87501.0,87500.0,0.09384553]
[1764553536282,0.002,87501.0,87500.0,0.35105695]
[1764553537247,0.002,87501.0,87500.0,0.39502695]
[1764553538665,0.001,87501.0,87500.0,0.40642695]
[1764553539095,0.001,87501.0,87500.0,0.39502695]
[1764553539348,0.01142687,87513.0,87510.0,0.23997254]
[1764553539549,0.23995637,87516.0,87510.0,0.33173074]
[1764553539916,0.23996306,87514.0,87510.0,0.0917582]
[1764553540143,0.02633661,87515.0,87510.0,0.0917582]
[1764553540345,0.01142687,87513.0,87510.0,0.0917582]
[1764553540545,0.22854008,87512.0,87510.0,0.0917582]
[1764553540714,0.01142687,87513.0,87510.0,0.0917582]
[1764553540914,0.22853486,87514.0,87510.0,0.10318546]
[1764553541313,0.01142687,87513.0,87510.0,0.0927582]
[1764553541678,0.22854008,87512.0,87510.0,0.0927582]
[1764553541820,0.03164,87511.0,87510.0,0.001]
[1764553542019,0.07827,87511.0,87510.0,0.001]
[1764553542405,0.07827,87511.0,87501.0,0.0917582]
[1764553542406,0.01142804,87504.0,87501.0,0.0917582]
[1764553542602,0.02282804,87504.0,87501.0,0.0917582]
[1764553542829,0.23996126,87504.0,87501.0,0.0917582]
[1764553543032,0.01142791,87505.0,87501.0,0.0917582]
[1764553543449,0.23998912,87504.0,87501.0,0.0917582]
[1764553543661,0.01142804,87504.0,87501.0,0.0917582]
[1764553543877,0.23998929,87504.0,87501.0,0.0917582]
[1764553544177,0.23996611,87503.0,87501.0,0.0937582]
[1764553544715,0.1006,87502.0,87501.0,0.0937582]
[1764553544970,0.1006,87502.0,87501.0,0.00265608]
[1764553545276,0.112,87502.0,87501.0,0.00265608]
[1764553545489,0.112,87502.0,87501.0,0.00065608]
[1764553545870,0.112,87502.0,87501.0,0.00365608]
[1764553546070,0.02233,87502.0,87501.0,0.00065608]
[1764553546275,0.1006,87502.0,87501.0,0.00065608]
[1764553546437,0.3425662,87502.0,87501.0,0.00165608]
[1764553546820,0.3415662,87502.0,87501.0,0.00065608]
[1764553547002,0.2949362,87502.0,87501.0,0.00065608]
[1764553547206,0.2969362,87502.0,87501.0,0.00165608]
[1764553547405,0.3398762,87502.0,87501.0,0.00165608]
[1764553551834,0.3284762,87502.0,87501.0,0.00165608]
[1764553552148,0.3398762,87502.0,87501.0,0.00165608]
[1764553561394,1.00215285,87502.0,87501.0,0.00165608]
[1764553561681,0.94686986,87502.0,87501.0,0.00165608]
[1764553562469,0.94486986,87502.0,87501.0,0.00065608]
[1764553562644,0.94486986,87502.0,87480.0,0.0004]
[1764553562645,0.22862107,87481.0,87480.0,0.0004]
[1764553562845,0.56898107,87481.0,87480.0,0.00079493]
[1764553563855,0.89198107,87481.0,87480.0,0.00079493]
[1764553564254,0.89298107,87481.0,87480.0,0.00479493]
[1764553564514,0.89198107,87481.0,87480.0,0.00079493]
[1764553564847,0.89298107,87481.0,87480.0,0.00379493]
[1764553565102,0.89198107,87481.0,87480.0,0.00079493]
[1764553565460,0.89498107,87481.0,87480.0,0.00179493]
[1764553566110,0.5630472,87471.0,87470.0,0.0004]
[1764553566313,0.6205272,87471.0,87470.0,0.00046748]
[1764553566467,0.6634672,87471.0,87470.0,0.00046748]
[1764553567414,0.72699019,87471.0,87470.0,0.00046748]
[1764553567616,0.76045958,87471.0,87470.0,0.00146748]
[1764553568201,0.76045958,87471.0,87470.0,0.00243644]
[1764553569823,0.75356495,87471.0,87470.0,0.00243644]
[1764553570240,0.69104196,87471.0,87470.0,0.00243644]
[1764553570653,0.69792845,87471.0,87470.0,0.00243644]
[1764553571895,0.94312845,87471.0,87470.0,0.00243644]
[1764553572222,1.00565144,87471.0,87470.0,0.00243644]
[1764553573378,1.00265144,87471.0,87470.0,0.00143644]
[1764553573582,1.00365144,87471.0,87470.0,0.00143644]
[1764553573737,1.00365144,87471.0,87470.0,0.00243644]
[1764553573738,1.00765144,87471.0,87470.0,0.00243644]
[1764553574327,1.03840466,87471.0,87470.0,0.00243644]
[1764553574982,1.00765144,87471.0,87470.0,0.00243644]
[1764553576739,0.60348845,87471.0,87470.0,0.00243644]
[1764553576881,0.5073672,87471.0,87470.0,0.00243644]
[1764553577288,0.8303672,87471.0,87470.0,0.00243644]
[1764553577498,0.2621672,87471.0,87470.0,0.00243644]
[1764553577700,0.2571672,87471.0,87470.0,0.00143644]
[1764553577922,0.003,87471.0,87470.0,0.00143644]
[1764553578765,0.24730706,87476.0,87470.0,0.00143644]
[1764553578973,0.001,87471.0,87470.0,0.00046748]
[1764553579322,0.01186,87481.0,87470.0,0.00046748]
[1764553579533,0.24007546,87473.0,87470.0,0.00046748]
[1764553579832,0.2326472,87471.0,87470.0,0.00146748]
[1764553580232,0.03383157,87477.0,87470.0,0.01189997]
[1764553580453,0.01143183,87475.0,87472.0,0.0298]
[1764553580659,0.01243157,87477.0,87472.0,0.0298]
[1764553580660,0.01643157,87477.0,87473.0,0.01143209]
[1764553580854,0.01243157,87477.0,87473.0,0.01143209]
[1764553581252,0.0114317,87476.0,87473.0,0.01143209]
[1764553581656,0.001,87477.0,87475.0,0.0298]
[1764553581863,0.001,87477.0,87476.0,0.07415]
[1764553582060,0.001,87477.0,87476.0,0.30278413]
[1764553583240,0.01143118,87480.0,87476.0,0.0855817]
[1764553583439,0.01143118,87480.0,87477.0,0.04435]
[1764553583645,0.01143118,87480.0,87479.0,0.0298]
[1764553583797,0.22863278,87477.0,87475.0,0.0917582]
[1764553584031,0.001,87477.0,87476.0,0.11174667]
[1764553584223,0.0114,87486.0,87481.0,0.01143105]
[1764553584401,0.0114,87486.0,87476.0,0.13854667]
[1764553584402,0.0224,87504.0,87495.0,0.01142922]
[1764553584611,0.01142778,87506.0,87501.0,0.0298]
[1764553584807,0.01142791,87505.0,87501.0,0.0298]
[1764553585015,0.01142804,87504.0,87501.0,0.0298]
[1764553585244,0.23998695,87505.0,87501.0,0.1215582]
[1764553585245,0.01142791,87505.0,87501.0,0.1215582]
[1764553585437,0.01142765,87507.0,87504.0,0.0298]
[1764553585638,0.2285662,87502.0,87501.0,0.0917582]
[1764553585817,0.01142804,87504.0,87501.0,0.0917582]
[1764553586648,0.22856359,87503.0,87501.0,0.0917582]
[1764553586846,0.01142804,87504.0,87501.0,0.0917582]
[1764553587051,0.01142778,87506.0,87502.0,0.01142831]
[1764553587304,0.00039489,87507.0,87506.0,0.05173]
[1764553587472,0.00039489,87507.0,87506.0,0.28028575]
[1764553587663,0.00039489,87507.0,87506.0,0.32463575]
[1764553587865,0.00039489,87507.0,87506.0,0.33603575]
[1764553588745,0.00239489,87507.0,87506.0,0.33703575]
[1764553589335,0.00239489,87507.0,87506.0,0.72255874]
[1764553589575,0.23987215,87547.0,87543.0,0.01142295]
[1764553589576,0.01142243,87547.0,87543.0,0.01142295]
[1764553589765,9.477e-05,87547.0,87546.0,0.02155]
[1764553590228,9.477e-05,87547.0,87543.0,0.0917582]
[1764553590229,0.25800793,87547.0,87543.0,0.0917582]
[1764553590402,0.011424,87535.0,87532.0,0.1133082]
[1764553590896,0.011424,87535.0,87532.0,0.0917582]
[1764553591113,0.00853,87536.0,87532.0,0.0917582]
[1764553591114,0.01995387,87536.0,87532.0,0.0917582]
[1764553591316,0.00709477,87547.0,87540.0,0.239889]
[1764553591518,9.477e-05,87547.0,87541.0,0.23988758]
[1764553591743,0.0125172,87547.0,87542.0,0.01142308]
[1764553591945,0.22845511,87545.0,87541.0,0.0917582]
[1764553592167,0.22846086,87543.0,87541.0,0.0917582]
[1764553592382,0.22846086,87543.0,87498.0,0.45714826]
[1764553592383,0.23991332,87532.0,87531.0,0.0917582]
[1764553592583,0.02946,87534.0,87531.0,0.0917582]
[1764553592715,0.01142413,87534.0,87532.0,0.001]
[1764553592917,0.27000525,87533.0,87532.0,0.001]
[1764553593117,0.23992612,87527.0,87522.0,0.0917582]
[1764553593317,0.22848786,87532.0,87522.0,0.0917582]
[1764553593318,0.00724,87536.0,87523.0,0.01142556]
[1764553593516,0.22849583,87529.0,87527.0,0.02804]
[1764553593743,0.22849583,87529.0,87525.0,0.0114253]
[1764553593953,0.01142491,87528.0,87525.0,0.0114253]
[1764553594185,0.24291021,87533.0,87525.0,0.0114253]
[1764553594186,0.01142413,87534.0,87528.0,0.02804]
[1764553594341,0.01142426,87533.0,87527.0,0.01142504]
[1764553594561,0.002,87529.0,87527.0,0.001]
[1764553595326,0.23049656,87529.0,87527.0,0.001]
[1764553595681,0.2284983,87528.0,87527.0,0.001]
[1764553595827,0.01142504,87527.0,87522.0,0.10318389]
[1764553596034,0.01142517,87526.0,87523.0,0.01142556]
[1764553596256,0.01142517,87526.0,87525.0,0.001]
[1764553596455,0.01142504,87527.0,87524.0,0.01142543]
[1764553597420,0.01142478,87529.0,87526.0,0.01142517]
[1764553597758,0.01142478,87529.0,87525.0,0.001]
[1764553597759,0.23992291,87529.0,87525.0,0.001]
[1764553597980,0.01142491,87528.0,87525.0,0.001]
[1764553598160,0.22850091,87527.0,87525.0,0.001]
[1764553598593,0.01142491,87528.0,87525.0,0.001]
[1764553598799,0.22850614,87525.0,87522.0,0.0917582]
[1764553598994,0.25797136,87523.0,87522.0,0.0917582]
[1764553599416,0.29949136,87523.0,87522.0,0.0917582]
[1764553600354,0.25897136,87523.0,87522.0,0.0937582]
[1764553600840,0.30049136,87523.0,87522.0,0.0937582]
[1764553601055,0.63489136,87523.0,87522.0,0.002]
[1764553602026,0.22854792,87509.0,87508.0,0.0917582]
[1764553602904,0.22854792,87509.0,87496.0,0.0917582]
[1764553602905,0.22857768,87498.0,87496.0,0.0917582]
[1764553603060,0.07098,87497.0,87496.0,0.0917582]
[1764553603263,0.2285871,87494.0,87486.0,0.0917582]
[1764553603475,0.2580471,87494.0,87486.0,0.0917582]
[1764553603671,0.2995671,87494.0,87486.0,0.0917582]
[1764553603905,0.2995671,87494.0,87486.0,0.1031886]
[1764553604116,0.2995671,87494.0,87486.0,0.0917582]
[1764553604696,0.3109671,87494.0,87486.0,0.0917582]
[1764553605072,0.6339671,87494.0,87475.0,0.0917582]
[1764553605693,0.6339671,87494.0,87493.0,0.00424999]
[1764553605694,0.6349671,87494.0,87493.0,0.00424999]
[1764553605886,0.6339671,87494.0,87493.0,0.00024999]
[1764553606327,0.6349671,87494.0,87493.0,0.00164488]
[1764553606528,0.6339671,87494.0,87493.0,0.00064488]
[1764553606935,0.6389671,87494.0,87493.0,0.00164488]
[1764553607408,0.5516472,87471.0,87470.0,0.0004]
[1764553607689,0.6123372,87471.0,87470.0,0.00046748]
[1764553607824,0.6562872,87471.0,87470.0,0.00046748]
[1764553608024,0.6448872,87471.0,87470.0,0.00046748]
[1764553608235,0.6562872,87471.0,87470.0,0.00046748]
[1764553608679,0.6562872,87471.0,87470.0,0.00346748]
[1764553608680,0.6572872,87471.0,87470.0,0.00346748]
[1764553609854,0.42864,87471.0,87470.0,0.00346748]
[1764553610086,0.6572872,87471.0,87470.0,0.00346748]
[1764553611046,0.6458872,87471.0,87470.0,0.00346748]
[1764553611272,0.6572872,87471.0,87470.0,0.00346748]
[1764553613021,0.9024872,87471.0,87470.0,0.00418641]
[1764553613475,0.96501019,87471.0,87470.0,0.00418641]
[1764553613620,0.56307335,87461.0,87460.0,0.0004]
[1764553613821,0.90738803,87461.0,87460.0,0.0004]
[1764553614020,0.90738803,87461.0,87430.0,0.0004]
[1764553614021,0.22872565,87441.0,87430.0,0.0004]
[1764553614248,0.28557565,87441.0,87430.0,0.0004]
[1764553614450,0.65252565,87441.0,87430.0,0.0004]
[1764553615370,0.65452565,87441.0,87440.0,0.0014]
[1764553615577,0.65552565,87441.0,87440.0,0.0014]
[1764553616939,0.64828565,87441.0,87440.0,0.0014]
[1764553617182,0.65552565,87441.0,87440.0,0.0014]
[1764553618294,0.63688565,87441.0,87440.0,0.0014]
[1764553618469,0.64412565,87441.0,87440.0,0.0014]
[1764553618953,0.65552565,87441.0,87440.0,0.0014]
[1764553619150,0.64412565,87441.0,87440.0,0.0014]
[1764553619721,0.88932565,87441.0,87440.0,0.0014]
[1764553619894,0.90072565,87441.0,87440.0,0.0014]
[1764553620911,0.82701565,87441.0,87440.0,0.0014]
[1764553621143,0.88960565,87441.0,87440.0,0.0014]
[1764553621547,0.56315181,87431.0,87430.0,0.0004]
[1764553621785,0.61098181,87431.0,87430.0,0.0004]
[1764553621985,0.65493181,87431.0,87430.0,0.0004]
[1764553622760,0.66217181,87431.0,87430.0,0.00051805]
[1764553622961,0.66317181,87431.0,87430.0,0.00151805]
[1764553623406,0.65593181,87431.0,87430.0,0.00151805]
[1764553623555,0.60782181,87431.0,87430.0,0.00151805]
[1764553623748,0.001,87431.0,87430.0,0.00151805]
[1764553623977,0.00824,87431.0,87430.0,0.00151805]
[1764553624460,0.001,87431.0,87430.0,0.00151805]
[1764553624665,0.001,87431.0,87430.0,0.00276911]
[1764553624881,0.001,87431.0,87430.0,0.25920354]
[1764553625247,0.001,87431.0,87430.0,0.30070354]
[1764553627230,0.01143602,87443.0,87439.0,0.01143654]
[1764553627634,0.01143602,87443.0,87442.0,0.00087563]
[1764553629032,0.11178602,87443.0,87442.0,0.00087563]
[1764553629403,0.10038602,87443.0,87442.0,0.00087563]
[1764553629638,0.11178602,87443.0,87442.0,0.00087563]
[1764553630044,0.68684412,87443.0,87442.0,0.00087563]
[1764553631640,0.67544412,87443.0,87442.0,0.00087563]